fUSD/lending_fUSD_20240301
["ID","MTS","AMOUNT","RATE_DAILY","PERIOD"]
[315917766,1709280703688,-522.07,0.00023012,2]
[315917767,1709280703696,-500.0,0.00023012,2]
[315917768,1709280703705,-510.66998106,0.00023012,2]
[315917769,1709280703715,-500.0,0.00023012,2]
[315917770,1709280703724,-1449.97,0.00023012,2]
[315917771,1709280703733,-500.0,0.00023012,2]
[315917772,1709280703742,-993.85,0.00023012,2]
[315917773,1709280703751,-1121.65,0.00023012,2]
[315917774,1709280703760,-500.0,0.00023012,2]
[315917775,1709280703769,-6136.04,0.00023012,2]
[315917776,1709280703778,-500.0,0.00023012,2]
[315917777,1709280703787,-500.0,0.00023012,2]
[315917778,1709280703796,-500.0,0.00023012,2]
[315917779,1709280703806,-500.0,0.00023012,2]
[315917780,1709280703816,-500.0,0.00023012,2]
[315917781,1709280703826,-3644.83,0.00023012,2]
[315917782,1709280703835,-500.0,0.00023012,2]
[315917783,1709280703844,-500.0,0.00023012,2]
[315917784,1709280703855,-500.0,0.00023012,2]
[315917785,1709280703864,-1205.25,0.00023012,2]
[315917786,1709280703873,-500.0,0.00023012,2]
[315917787,1709280703883,-500.0,0.00023012,2]
[315917788,1709280703894,-500.0,0.00023012,2]
[315917789,1709280703904,-516.11690878,0.00023012,2]
[315917790,1709280703914,-874.4,0.00023012,2]
[315917791,1709280703923,-503.99691851,0.00023012,2]
[315917792,1709280703933,-3207.23,0.00023012,2]
[315917793,1709280703942,-581.39,0.00023012,2]
[315917794,1709280703951,-500.0,0.00023012,2]
[315917795,1709280703961,-500.0,0.00023012,2]
[315917796,1709280703970,-500.0,0.00023012,2]
[315917797,1709280703980,-4657.41,0.00023012,2]
[315917798,1709280703989,-1348.12,0.00023012,2]
[315917799,1709280703998,-500.0,0.00023012,2]
[315917800,1709280704008,-500.0,0.00023012,2]
[315917801,1709280704017,-500.0,0.00023012,2]
[315917802,1709280704026,-500.0,0.00023012,2]
[315917803,1709280704036,-500.0,0.00023012,2]
[315917804,1709280704045,-500.0,0.00023012,2]
[315917805,1709280704054,-1950.22,0.00023012,2]
[315917806,1709280704063,-1007.46,0.00023012,2]
[315917807,1709280704072,-500.0,0.00023012,2]
[315917808,1709280704081,-895.35,0.00023012,2]
[315917809,1709280704090,-500.0,0.00023012,2]
[315917810,1709280704099,-500.0,0.00023012,2]
[315917811,1709280704110,-500.0,0.00023012,2]
[315917812,1709280704121,-500.0,0.00023012,2]
[315917813,1709280704131,-527.77,0.00023012,2]
[315917814,1709280704142,-498.56778569,0.00023012,2]
[315917815,1709280704152,-500.62482755,0.00023012,2]
[315917816,1709280704161,-1092.06,0.00023012,2]
[315917817,1709280704170,-500.0,0.00023012,2]
[315917818,1709280704179,-500.0,0.00023012,2]
[315917819,1709280704189,-500.0,0.00023012,2]
[315917820,1709280704198,-2307.5,0.00023012,2]
[315917821,1709280704207,-500.0,0.00023012,2]
[315917822,1709280704217,-500.0,0.00023012,2]
[315917823,1709280704226,-9413.91,0.00023012,2]
[315917824,1709280704236,-500.0,0.00023012,2]
[315917825,1709280704246,-8215.93,0.00023012,2]
[315917826,1709280704256,-2079.13,0.00023012,2]
[315917827,1709280704265,-500.0,0.00023012,2]
[315917828,1709280704275,-500.0,0.00023012,2]
[315917829,1709280704285,-500.0,0.00023012,2]
[315917830,1709280704293,-500.0,0.00023012,2]
[315917831,1709280704302,-452.14931985,0.00023012,2]
[315917832,1709280704312,-656.58,0.00023012,2]
[315917833,1709280704321,-1580.54,0.00023012,2]
[315917834,1709280704331,-516.5434327,0.00023012,2]
[315917835,1709280704341,-1212.9,0.00023012,2]
[315917836,1709280704350,-504.79061323,0.00023012,2]
[315917837,1709280704359,-1414.08,0.00023012,2]
[315917838,1709280704369,-1590.36,0.00023012,2]
[315917839,1709280704378,-500.0,0.00023012,2]
[315917840,1709280704388,-500.0,0.00023012,2]
[315917841,1709280704397,-5579.14,0.00023012,2]
[315917842,1709280704406,-500.0,0.00023012,2]
[315917843,1709280704415,-19126.13,0.00023012,2]
[315917844,1709280704425,-500.0,0.00023012,2]
[315917845,1709280704434,-500.0,0.00023012,2]
[315917846,1709280704444,-500.0,0.00023012,2]
[315917847,1709280704454,-500.0,0.00023012,2]
[315917848,1709280704464,-1103.95,0.00023012,2]
[315917849,1709280704474,-1318.55,0.00023012,2]
[315917850,1709280704484,-511.06804856,0.00023012,2]
[315917851,1709280704495,-500.0,0.00023012,2]
[315917852,1709280704505,-500.0,0.00023012,2]
[315917853,1709280704514,-422.98,0.00023012,2]
[315917854,1709280704524,-500.0,0.00023013,2]
[315917855,1709280704535,-1407.41,0.00023013,2]
[315917856,1709280704544,-404.09955136,0.00023013,2]
[315917857,1709280704553,-500.0,0.00023013,2]
[315917858,1709280704562,-500.0,0.00023013,2]
[315917859,1709280704571,-500.0,0.00023013,2]
[315917860,1709280704580,-500.0,0.00023013,2]
[315917861,1709280704590,-201.12151206,0.00023013,2]
[315917862,1709280704599,-500.0,0.00023013,2]
[315917863,1709280704608,-1297.84,0.00023013,2]
[315917864,1709280704617,-500.0,0.00023013,2]
[315917865,1709280704627,-500.0,0.00023013,2]
[315917866,1709280704638,-500.0,0.00023013,2]
[315917867,1709280704648,-500.0,0.00023013,2]
[315917868,1709280704658,-500.0,0.00023013,2]
[315917869,1709280704667,-500.0,0.00023013,2]
[315917870,1709280704676,-500.0,0.00023013,2]
[315917871,1709280704686,-500.0,0.00023013,2]
[315917872,1709280704695,-500.0,0.00023013,2]
[315917873,1709280704704,-500.0,0.00023013,2]
[315917874,1709280704714,-500.0,0.00023013,2]
[315917875,1709280704723,-500.0,0.00023013,2]
[315917876,1709280704733,-500.0,0.00023013,2]
[315917877,1709280704743,-500.0,0.00023013,2]
[315917878,1709280704752,-500.0,0.00023013,2]
[315917879,1709280704762,-500.0,0.00023013,2]
[315917880,1709280704772,-569.59,0.00023013,2]
[315917881,1709280704782,-527.48,0.00023013,2]
[315917882,1709280704791,-639.72,0.00023013,2]
[315917883,1709280704801,-500.0,0.00023013,2]
[315917884,1709280704811,-500.0,0.00023013,2]
[315917885,1709280704820,-500.0,0.00023013,2]
[315917886,1709280704829,-500.0,0.00023013,2]
[315917887,1709280704839,-500.0,0.00023013,2]
[315917888,1709280704848,-500.0,0.00023013,2]
[315917889,1709280704857,-952.09,0.00023013,2]
[315917890,1709280704867,-936.73,0.00023013,2]
[315917891,1709280704877,-621.75952747,0.00023013,2]
[315917892,1709280704888,-233.34857328,0.00023013,2]
[315917893,1709280704897,-767.52,0.00023013,2]
[315917894,1709280704907,-500.0,0.00023013,2]
[315917895,1709280705113,-500.0,0.00023013,2]
[315917896,1709280705123,-567.29069535,0.00023013,2]
[315917897,1709280705133,-500.0,0.00023013,2]
[315917898,1709280705144,-641.32029833,0.00023013,2]
[315917899,1709280705154,-500.0,0.00023013,2]
[315917900,1709280705163,-500.0,0.00023013,2]
[315917901,1709280705172,-500.0,0.00023013,2]
[315917902,1709280705181,-500.0,0.00023013,2]
[315917903,1709280705192,-500.0,0.00023013,2]
[315917904,1709280705202,-2335.36,0.00023013,2]
[315917905,1709280705212,-615.25,0.00023013,2]
[315917906,1709280705221,-500.0,0.00023013,2]
[315917907,1709280705231,-556.01638708,0.00023013,2]
[315917908,1709280705240,-500.0,0.00023013,2]
[315917909,1709280705249,-272.99480022,0.00023013,2]
[315917910,1709280705259,-500.0,0.00023013,2]
[315917911,1709280705268,-500.0,0.00023013,2]
[315917912,1709280705277,-511.09,0.00023013,2]
[315917913,1709280705286,-500.0,0.00023013,2]
[315917914,1709280705296,-500.0,0.00023013,2]
[315917915,1709280705305,-872.37,0.00023013,2]
[315917916,1709280705316,-500.0,0.00023013,2]
[315917917,1709280705325,-500.0,0.00023013,2]
[315917918,1709280705334,-500.0,0.00023013,2]
[315917919,1709280705343,-872.06,0.00023013,2]
[315917920,1709280705353,-500.0,0.00023013,2]
[315917921,1709280705363,-500.0,0.00023013,2]
[315917922,1709280705372,-500.0,0.00023013,2]
[315917923,1709280705381,-500.0,0.00023013,2]
[315917924,1709280705391,-500.0,0.00023013,2]
[315917925,1709280705400,-500.0,0.00023013,2]
[315917926,1709280705410,-500.0,0.00023013,2]
[315917927,1709280705419,-500.0,0.00023013,2]
[315917928,1709280705429,-500.0,0.00023013,2]
[315917929,1709280705439,-500.0,0.00023013,2]
[315917930,1709280705449,-539.57,0.00023013,2]
[315917931,1709280705459,-500.0,0.00023013,2]
[315917932,1709280705469,-669.36,0.00023013,2]
[315917933,1709280705479,-639.59,0.00023013,2]
[315917934,1709280705489,-500.0,0.00023013,2]
[315917935,1709280705499,-500.0,0.00023013,2]
[315917936,1709280705508,-500.0,0.00023013,2]
[315917937,1709280705517,-782.7,0.00023013,2]
[315917938,1709280705526,-500.0,0.00023013,2]
[315917939,1709280705535,-204.49995803,0.00023013,2]
[315917940,1709280705544,-500.0,0.00023013,2]
[315917941,1709280705554,-500.0,0.00023013,2]
[315917942,1709280705563,-500.0,0.00023013,2]
[315917943,1709280705573,-500.0,0.00023013,2]
[315917944,1709280705582,-500.0,0.00023013,2]
[315917945,1709280705591,-835.06,0.00023013,2]
[315917946,1709280705602,-512.93,0.00023013,2]
[315917947,1709280705612,-500.0,0.00023013,2]
[315917948,1709280705622,-636.26,0.00023013,2]
[315917949,1709280705632,-580.17,0.00023013,2]
[315917950,1709280705642,-527.12,0.00023013,2]
[315917951,1709280705651,-676.28,0.00023013,2]
[315917952,1709280705661,-500.0,0.00023013,2]
[315917953,1709280705670,-500.0,0.00023013,2]
[315917954,1709280705680,-500.0,0.00023013,2]
[315917955,1709280705689,-500.0,0.00023013,2]
[315917956,1709280705699,-500.0,0.00023013,2]
[315917957,1709280705708,-500.0,0.00023013,2]
[315917958,1709280705718,-521.59,0.00023013,2]
[315917959,1709280705728,-862.6,0.00023013,2]
[315917960,1709280705737,-500.0,0.00023013,2]
[315917961,1709280705746,-500.0,0.00023013,2]
[315917962,1709280705756,-500.0,0.00023013,2]
[315917963,1709280705766,-500.0,0.00023013,2]
[315917964,1709280705776,-500.0,0.00023013,2]
[315917965,1709280705786,-500.0,0.00023013,2]
[315917966,1709280705795,-649.07,0.00023013,2]
[315917967,1709280705805,-500.0,0.00023013,2]
[315917968,1709280705814,-547.02,0.00023013,2]
[315917969,1709280705824,-500.0,0.00023013,2]
[315917970,1709280705833,-964.57,0.00023013,2]
[315917971,1709280705843,-500.0,0.00023013,2]
[315917972,1709280705853,-3302.4,0.00023013,2]
[315917973,1709280705862,-351.51116686,0.00023013,2]
[315917974,1709280705872,-500.0,0.00023013,2]
[315917975,1709280705882,-1444.04,0.00023013,2]
[315917976,1709280705892,-500.0,0.00023013,2]
[315917977,1709280705901,-665.31,0.00023013,2]
[315917978,1709280705911,-646.49,0.00023013,2]
[315917979,1709280705920,-963.93,0.00023013,2]
[315917980,1709280705929,-500.0,0.00023013,2]
[315917981,1709280705939,-500.0,0.00023013,2]
[315917982,1709280705948,-500.0,0.00023013,2]
[315917983,1709280705957,-500.0,0.00023013,2]
[315917984,1709280705967,-911.36,0.00023013,2]
[315917985,1709280705976,-500.0,0.00023013,2]
[315917986,1709280705985,-545.11,0.00023013,2]
[315917987,1709280705994,-500.0,0.00023013,2]
[315917988,1709280706003,-500.0,0.00023013,2]
[315917989,1709280706013,-500.0,0.00023013,2]
[315917990,1709280706022,-500.0,0.00023013,2]
[315917991,1709280706031,-500.0,0.00023013,2]
[315917992,1709280706041,-500.0,0.00023013,2]
[315917993,1709280706050,-500.0,0.00023013,2]
[315917994,1709280706060,-500.0,0.00023013,2]
[315917995,1709280706070,-500.0,0.00023013,2]
[315917996,1709280706079,-500.0,0.00023013,2]
[315917997,1709280706089,-500.0,0.00023013,2]
[315917998,1709280706098,-500.0,0.00023013,2]
[315917999,1709280706111,-500.0,0.00023013,2]
[315918000,1709280706120,-500.0,0.00023013,2]
[315918001,1709280706131,-574.95,0.00023013,2]
[315918002,1709280706142,-500.0,0.00023013,2]
[315918003,1709280706153,-500.0,0.00023013,2]
[315918004,1709280706162,-500.0,0.00023013,2]
[315918005,1709280706171,-1311.36,0.00023013,2]
[315918006,1709280706181,-659.83,0.00023013,2]
[315918007,1709280706191,-506.3,0.00023013,2]
[315918008,1709280706201,-806.15,0.00023013,2]
[315918009,1709280706210,-1135.26,0.00023013,2]
[315918010,1709280706220,-203.0,0.0002304,2]
[315918011,1709280706229,-384.87833728,0.00023043,2]
[315918012,1709280706238,-445.81,0.00023045,2]
[315918013,1709280706247,-1600.8,0.00023047,2]
[315918014,1709280706257,-933.4,0.00023047,2]
[315918015,1709280706267,-500.0,0.00023047,2]
[315918016,1709280706277,-500.0,0.00023047,2]
[315918017,1709280706286,-857.89,0.00023047,2]
[315918018,1709280706295,-638.16,0.00023047,2]
[315918019,1709280706304,-1441.1641594,0.00023069,2]
[315918020,1709280706314,-499.99,0.00023072,2]
[315918021,1709280706323,-1269.61,0.00023072,2]
[315918022,1709280706333,-192.52,0.00023072,2]
[315918023,1709280706342,-313.86,0.00023072,2]
[315918024,1709280706351,-152.56,0.00023078,2]
[315918025,1709280706361,-500.0,0.00023095,2]
[315918026,1709280706370,-1172.5,0.00023095,2]
[315918027,1709280706379,-1036.69,0.00023095,2]
[315918028,1709280706390,-771.04,0.00023097,2]
[315918029,1709280706399,-646.32,0.00023097,2]
[315918030,1709280706408,-1251.2,0.00023097,2]
[315918031,1709280706417,-500.0,0.00023097,2]
[315918032,1709280706426,-979.87,0.00023097,2]
[315918033,1709280706435,-2305.35,0.00023097,2]
[315918034,1709280706445,-950.08,0.00023097,2]
[315918035,1709280706454,-2670.06,0.00023097,2]
[315918036,1709280706463,-3766.26,0.00023097,2]
[315918037,1709280706472,-1175.85,0.00023097,2]
[315918038,1709280706481,-979.73,0.00023097,2]
[315918039,1709280706491,-2181.82,0.00023097,2]
[315918040,1709280706501,-1221.36,0.00023097,2]
[315918041,1709280706514,-649.86,0.00023097,2]
[315918042,1709280706523,-931.8,0.00023097,2]
[315918043,1709280706533,-532.25,0.00023097,2]
[315918044,1709280706542,-1294.88,0.00023097,2]
[315918045,1709280706552,-910.56,0.00023097,2]
[315918046,1709280706561,-500.0,0.00023097,2]
[315918047,1709280706570,-1431.72,0.00023097,2]
[315918048,1709280706579,-500.0,0.00023097,2]
[315918049,1709280706589,-953.23,0.00023097,2]
[315918050,1709280706598,-676.22,0.00023097,2]
[315918051,1709280706607,-1367.64,0.00023097,2]
[315918052,1709280706617,-1435.79,0.00023097,2]
[315918053,1709280706626,-788.15,0.00023097,2]
[315918054,1709280706636,-750.21,0.00023105,2]
[315918055,1709280706645,-424.53,0.00023105,2]
[315918056,1709280706653,-422.98,0.00023129,2]
[315918057,1709280706662,-864.79931262,0.00023159,2]
[315918058,1709280706672,-157.01,0.0002317,2]
[315918059,1709280706681,-2000.0,0.00023182,2]
[315918060,1709280706691,-200.0,0.00023182,2]
[315918061,1709280706701,-1269.61,0.00023187,2]
[315918062,1709280706710,-192.52,0.00023187,2]
[315918063,1709280706719,-313.86,0.00023187,2]
[315918064,1709280706728,-1026.22018777,0.00023188,2]
[315918065,1709280706738,-692.32971478,0.00023188,2]
[315918066,1709280706748,-2907.24273049,0.000232,10]
[315918067,1709280706758,-152.56,0.00023207,2]
[315918068,1709280706767,-180.0,0.00023235,2]
[315918069,1709280706776,-422.98,0.00023246,2]
[315918070,1709280706785,-166.7,0.00023247,2]
[315918071,1709280706795,-500.0,0.00023247,2]
[315918072,1709280706804,-519.11,0.00023247,2]
[315918073,1709280706813,-500.0,0.00023247,2]
[315918074,1709280706823,-500.0,0.00023247,2]
[315918075,1709280706832,-564.25,0.00023247,2]
[315918076,1709280706842,-500.0,0.00023247,2]
[315918077,1709280706851,-500.0,0.00023247,2]
[315918078,1709280706861,-500.0,0.00023247,2]
[315918079,1709280706870,-500.0,0.00023247,2]
[315918080,1709280706879,-768.4,0.00023247,2]
[315918081,1709280706889,-500.0,0.00023247,2]
[315918082,1709280706899,-500.0,0.00023247,2]
[315918083,1709280706908,-500.0,0.00023247,2]
[315918084,1709280706918,-500.0,0.00023247,2]
[315918085,1709280706928,-500.0,0.00023247,2]
[315918086,1709280706937,-500.0,0.00023247,2]
[315918087,1709280706947,-500.0,0.00023247,2]
[315918088,1709280706957,-500.0,0.00023247,2]
[315918089,1709280706966,-500.0,0.00023247,2]
[315918090,1709280706976,-500.0,0.00023247,2]
[315918091,1709280706986,-500.0,0.00023247,2]
[315918092,1709280706995,-500.0,0.00023247,2]
[315918093,1709280707005,-500.0,0.00023247,2]
[315918094,1709280707014,-500.0,0.00023247,2]
[315918095,1709280707024,-500.0,0.00023247,2]
[315918096,1709280707033,-500.0,0.00023247,2]
[315918097,1709280707042,-500.0,0.00023247,2]
[315918098,1709280707052,-500.0,0.00023247,2]
[315918099,1709280707061,-500.0,0.00023247,2]
[315918100,1709280707071,-500.0,0.00023247,2]
[315918101,1709280707080,-500.0,0.00023247,2]
[315918102,1709280707089,-500.0,0.00023247,2]
[315918103,1709280707099,-500.0,0.00023247,2]
[315918104,1709280707110,-500.0,0.00023247,2]
[315918105,1709280707123,-500.0,0.00023247,2]
[315918106,1709280707132,-500.0,0.00023247,2]
[315918107,1709280707143,-500.0,0.00023247,2]
[315918108,1709280707152,-500.0,0.00023247,2]
[315918109,1709280707163,-500.0,0.00023247,2]
[315918110,1709280707172,-500.0,0.00023247,2]
[315918111,1709280707181,-500.0,0.00023247,2]
[315918112,1709280707191,-256.72165395,0.00023247,2]
[315918113,1709280707201,-500.0,0.00023247,2]
[315918114,1709280707210,-500.0,0.00023247,2]
[315918115,1709280707220,-780.9,0.00023247,2]
[315918116,1709280707229,-500.0,0.00023247,2]
[315918117,1709280707238,-500.0,0.00023247,2]
[315918118,1709280707247,-500.0,0.00023247,2]
[315918119,1709280707256,-500.0,0.00023247,2]
[315918120,1709280707266,-300.0,0.00023249,2]
[315918121,1709280707275,-172.09116201,0.00023271,2]
[315918122,1709280707284,-1321.3828504,0.00023273,2]
[315918123,1709280707294,-384.87833728,0.00023273,2]
[315918124,1709280707303,-864.79931262,0.00023282,2]
[315918125,1709280707312,-15571.86932794,0.00023283,2]
[315918126,1709280707322,-1000.0,0.00023285,2]
[315918127,1709280707331,-647.87,0.00023285,2]
[315918128,1709280707340,-1210.83,0.00023285,2]
[315918129,1709280707349,-500.0,0.00023285,2]
[315918130,1709280707359,-1263.13,0.00023285,2]
[315918131,1709280707368,-500.0,0.00023285,2]
[315918132,1709280707377,-1230.98,0.00023285,2]
[315918133,1709280707388,-780.72,0.00023285,2]
[315918134,1709280707397,-1834.94,0.00023285,2]
[315918135,1709280707407,-8333.97,0.00023285,2]
[315918136,1709280707417,-1366.06,0.00023285,2]
[315918137,1709280707428,-3290.87,0.00023285,2]
[315918138,1709280707437,-1241.38,0.00023285,2]
[315918139,1709280707446,-698.71,0.00023285,2]
[315918140,1709280707456,-925.38768442,0.00023285,2]
[315918141,1709280708132,-303.84231558,0.00023285,2]
[315918142,1709280708143,-1764.75,0.00023285,2]
[315918143,1709280708152,-2792.62,0.00023285,2]
[315918144,1709280708162,-1671.72,0.00023285,2]
[315918145,1709280708172,-901.63,0.00023285,2]
[315918146,1709280708181,-2536.61,0.00023285,2]
[315918147,1709280708191,-1145.56,0.00023285,2]
[315918148,1709280708200,-1266.1,0.00023285,2]
[315918149,1709280708209,-4377.77,0.00023285,2]
[315918150,1709280708218,-2984.07,0.00023285,2]
[315918151,1709280708227,-1714.86,0.00023285,2]
[315918152,1709280708236,-555.05,0.00023285,2]
[315918153,1709280708246,-500.0,0.00023285,2]
[315918154,1709280708255,-1262.47,0.00023285,2]
[315918155,1709280708264,-7108.23,0.00023285,2]
[315918156,1709280708273,-500.0,0.00023286,2]
[315918157,1709280708283,-500.0,0.00023286,2]
[315918158,1709280708292,-500.0,0.00023286,2]
[315918159,1709280708301,-500.0,0.00023286,2]
[315918160,1709280708310,-514.59,0.00023286,2]
[315918161,1709280708319,-500.0,0.00023286,2]
[315918162,1709280708328,-500.0,0.00023286,2]
[315918163,1709280708337,-500.0,0.00023286,2]
[315918164,1709280708346,-500.0,0.00023286,2]
[315918165,1709280708357,-500.0,0.00023286,2]
[315918166,1709280708365,-500.0,0.00023286,2]
[315918167,1709280708375,-500.0,0.00023286,2]
[315918168,1709280708384,-591.65,0.00023286,2]
[315918169,1709280708397,-500.0,0.00023286,2]
[315918170,1709280708406,-500.0,0.00023286,2]
[315918171,1709280708416,-508.82821641,0.00023286,2]
[315918172,1709280708425,-500.0,0.00023286,2]
[315918173,1709280708434,-500.0,0.00023286,2]
[315918174,1709280708444,-513.36697564,0.00023286,2]
[315918175,1709280708453,-500.0,0.00023286,2]
[315918176,1709280708462,-500.0,0.00023286,2]
[315918177,1709280708472,-500.0,0.00023286,2]
[315918178,1709280708481,-500.0,0.00023286,2]
[315918179,1709280708490,-500.0,0.00023286,2]
[315918180,1709280708499,-500.0,0.00023286,2]
[315918181,1709280708508,-500.0,0.00023286,2]
[315918182,1709280708517,-500.0,0.00023286,2]
[315918183,1709280708526,-500.0,0.00023286,2]
[315918184,1709280708535,-500.0,0.00023286,2]
[315918185,1709280708545,-500.0,0.00023286,2]
[315918186,1709280708554,-500.0,0.00023286,2]
[315918187,1709280708564,-500.0,0.00023286,2]
[315918188,1709280708575,-500.0,0.00023286,2]
[315918189,1709280708584,-500.0,0.00023286,2]
[315918190,1709280708593,-500.0,0.00023286,2]
[315918191,1709280708602,-500.0,0.00023286,2]
[315918192,1709280708612,-500.0,0.00023286,2]
[315918193,1709280708621,-1601.49,0.00023286,2]
[315918194,1709280708631,-500.0,0.00023286,2]
[315918195,1709280708643,-500.0,0.00023286,2]
[315918196,1709280708661,-552.46,0.00023286,2]
[315918197,1709280708683,-500.0,0.00023286,2]
[315918198,1709280708699,-500.0,0.00023286,2]
[315918199,1709280708720,-907.3,0.00023286,2]
[315918200,1709280708736,-500.0,0.00023286,2]
[315918201,1709280708754,-500.0,0.00023286,2]
[315918202,1709280708774,-500.0,0.00023286,2]
[315918203,1709280708790,-500.0,0.00023286,2]
[315918204,1709280708808,-500.0,0.00023286,2]
[315918205,1709280708825,-500.0,0.00023286,2]
[315918206,1709280708844,-500.0,0.00023286,2]
[315918207,1709280708864,-500.0,0.00023286,2]
[315918208,1709280708876,-160.57697846,0.00023286,2]
[315918209,1709280708892,-500.0,0.00023286,2]
[315918210,1709280708910,-505.82553126,0.00023286,2]
[315918211,1709280708924,-617.32,0.00023286,2]
[315918212,1709280708938,-500.0,0.00023286,2]
[315918213,1709280708956,-659.28,0.00023286,2]
[315918214,1709280708971,-500.0,0.00023286,2]
[315918215,1709280708985,-500.0,0.00023286,2]
[315918216,1709280709000,-700.63,0.00023286,2]
[315918217,1709280709015,-500.0,0.00023286,2]
[315918218,1709280709029,-500.0,0.00023286,2]
[315918219,1709280709043,-500.0,0.00023286,2]
[315918220,1709280709058,-500.0,0.00023286,2]
[315918221,1709280709074,-500.0,0.00023286,2]
[315918222,1709280709088,-500.0,0.00023286,2]
[315918223,1709280709103,-506.01,0.00023286,2]
[315918224,1709280709122,-500.0,0.00023286,2]
[315918225,1709280709137,-500.0,0.00023286,2]
[315918226,1709280709152,-500.0,0.00023286,2]
[315918227,1709280709168,-500.0,0.00023286,2]
[315918228,1709280709182,-500.0,0.00023286,2]
[315918229,1709280709197,-500.0,0.00023286,2]
[315918230,1709280709211,-1096.66,0.00023286,2]
[315918231,1709280709226,-500.0,0.00023286,2]
[315918232,1709280709241,-500.0,0.00023286,2]
[315918233,1709280709256,-500.0,0.00023286,2]
[315918234,1709280709270,-711.21,0.00023286,2]
[315918235,1709280709285,-619.15,0.00023286,2]
[315918236,1709280709300,-500.0,0.00023286,2]
[315918237,1709280709314,-611.26,0.00023286,2]
[315918238,1709280709329,-551.09,0.00023286,2]
[315918239,1709280709344,-500.0,0.00023286,2]
[315918240,1709280709358,-500.0,0.00023286,2]
[315918241,1709280709374,-500.0,0.00023286,2]
[315918242,1709280709389,-500.0,0.00023286,2]
[315918243,1709280709404,-500.0,0.00023286,2]
[315918244,1709280709419,-150.0,0.00023286,2]
[315918245,1709280709434,-500.0,0.00023286,2]
[315918246,1709280709448,-500.0,0.00023286,2]
[315918247,1709280709462,-500.0,0.00023286,2]
[315918248,1709280709478,-500.0,0.00023286,2]
[315918249,1709280709493,-500.0,0.00023286,2]
[315918250,1709280709507,-500.0,0.00023286,2]
[315918251,1709280709521,-500.0,0.00023286,2]
[315918252,1709280709538,-500.0,0.00023286,2]
[315918253,1709280709551,-500.0,0.00023286,2]
[315918254,1709280709566,-858.77,0.00023286,2]
[315918255,1709280709581,-8173.97,0.00023286,2]
[315918256,1709280709597,-765.56,0.00023286,2]
[315918257,1709280709611,-500.0,0.00023286,2]
[315918258,1709280709628,-500.0,0.00023286,2]
[315918259,1709280709644,-965.16,0.00023286,2]
[315918260,1709280709658,-500.0,0.00023286,2]
[315918261,1709280709667,-554.18126673,0.00023286,2]
[315918262,1709280709676,-6837.18,0.00023286,2]
[315918263,1709280709686,-500.0,0.00023286,2]
[315918264,1709280709696,-546.27505862,0.00023286,2]
[315918265,1709280709706,-500.0,0.00023286,2]